bitfinex-derivatives/quotes_BNBF0:USTF0_20250112
["timestamp","ask_amount","ask_price","bid_price","bid_amount"]
[1736719838954,0.26609104,691.45,690.13,0.27797612]
[1736719839159,0.26608765,691.44,690.13,0.27797612]
[1736719839354,1.51172346,691.72,690.13,0.27797612]
[1736719839355,0.26608765,691.43,690.13,0.27797612]
[1736719839551,0.26608765,691.42,690.13,0.27797612]
[1736719839753,0.26608765,691.41,690.13,0.27797612]
[1736719839954,0.26608765,691.4,690.13,0.27797612]
[1736719840158,0.26608765,691.39,690.13,0.27797612]
[1736719840360,0.26608765,691.38,690.13,0.27797612]
[1736719840659,0.26608765,691.37,690.13,0.27797612]
[1736719840962,0.26608765,691.36,690.13,0.27797612]
[1736719841154,0.26608765,691.35,690.13,0.27797612]
[1736719841354,0.26608765,691.34,690.13,0.27797612]
[1736719841558,0.26608765,691.33,690.13,0.27797612]
[1736719841759,0.26610687,691.32,690.13,0.27797612]
[1736719841961,0.26610687,691.31,690.13,0.27797612]
[1736719842261,0.26610687,691.3,690.13,0.27797612]
[1736719842460,1.51172346,691.72,690.13,0.27797612]
[1736719842761,0.26609843,691.71,690.13,0.27797612]
[1736719842961,0.26609843,691.7,690.13,0.27797612]
[1736719843160,0.26609843,691.69,690.13,0.27797612]
[1736719843555,0.26609843,691.68,690.13,0.27797612]
[1736719843960,0.26609843,691.71,690.13,0.27797612]
[1736719844562,1.51172346,691.72,690.13,0.27797612]
[1736719844563,0.26609843,691.67,690.13,0.27797612]
[1736719844857,0.26607711,691.66,690.13,0.27797612]
[1736719845255,0.26607711,691.65,690.13,0.27797612]
[1736719845456,0.26607711,691.64,690.13,0.27797612]
[1736719845659,0.26607711,691.63,690.13,0.27797612]
[1736719845857,0.26607711,691.62,690.13,0.27797612]
[1736719846060,0.26607711,691.61,690.13,0.27797612]
[1736719846361,0.26607711,691.6,690.13,0.27797612]
[1736719846663,0.26607711,691.59,690.13,0.27797612]
[1736719846860,0.26607711,691.58,690.13,0.27797612]
[1736719847064,0.26607711,691.57,690.13,0.27797612]
[1736719847260,0.26608092,691.56,690.13,0.27797612]
[1736719847457,0.55528632,691.55,690.13,0.27797612]
[1736719847760,0.26608092,691.54,690.13,0.27797612]
[1736719847964,0.26608092,691.53,690.13,0.27797612]
[1736719848167,0.26608092,691.52,690.13,0.27797612]
[1736719848363,0.2892054,691.55,690.13,0.27797612]
[1736719848364,0.26608092,691.51,690.13,0.27797612]
[1736719848564,0.26608092,691.5,690.13,0.27797612]
[1736719848866,0.26608092,691.49,690.13,0.27797612]
[1736719849160,0.26608092,691.48,690.13,0.27797612]
[1736719849466,0.26608092,691.47,690.13,0.27797612]
[1736719849669,0.26608092,691.46,690.13,0.27797612]
[1736719849967,0.26607966,691.45,690.13,0.27797612]
[1736719850165,0.26607966,691.44,690.13,0.27797612]
[1736719850362,0.26607966,691.43,690.13,0.27797612]
[1736719850564,0.28923468,691.48,690.13,0.27797612]
[1736719850866,0.26608278,691.47,690.13,0.27797612]
[1736719851165,0.26608278,691.46,690.13,0.27797612]
[1736719851461,0.55533001,691.45,690.13,0.27797612]
[1736719851666,0.26608278,691.44,690.13,0.27797612]
[1736719851867,0.26608278,691.43,690.13,0.27797612]
[1736719852066,0.55534256,691.42,690.13,0.27797612]
[1736719852263,0.26608278,691.41,690.13,0.27797612]
[1736719852460,0.28925978,691.42,690.13,0.27797612]
[1736719852461,0.26608278,691.4,690.13,0.27797612]
[1736719852660,0.55535324,691.39,690.13,0.27797612]
[1736719852965,0.26608091,691.38,690.13,0.27797612]
[1736719853165,0.26608091,691.37,690.13,0.27797612]
[1736719853361,0.26608091,691.36,690.13,0.27797612]
[1736719853565,0.55536998,691.35,690.13,0.27797612]
[1736719853766,0.26608091,691.34,690.13,0.27797612]
[1736719854068,0.26608091,691.33,690.13,0.27797612]
[1736719854268,0.26608091,691.32,690.13,0.27797612]
[1736719854463,0.26608091,691.31,690.13,0.27797612]
[1736719854666,0.26608091,691.3,690.13,0.27797612]
[1736719854867,0.26608091,691.29,690.13,0.27797612]
[1736719855168,0.26608091,691.28,690.13,0.27797612]
[1736719855468,0.26608091,691.27,690.13,0.27797612]
[1736719855670,0.26608091,691.26,690.13,0.27797612]
[1736719855869,0.28928907,691.35,690.13,0.27797612]
[1736719855870,0.26608091,691.25,690.13,0.27797612]
[1736719856069,0.26608091,691.24,690.13,0.27797612]
[1736719856263,0.26608091,691.23,690.13,0.27797612]
[1736719856467,0.26608091,691.22,690.13,0.27797612]
[1736719856667,0.26608091,691.21,690.13,0.27797612]
[1736719856864,0.26608091,691.2,690.13,0.27797612]
[1736719857066,0.26608091,691.19,690.13,0.27797612]
[1736719857268,0.26608091,691.18,690.13,0.27797612]
[1736719857469,0.26608091,691.17,690.13,0.27797612]
[1736719857775,0.26608091,691.16,690.13,0.27797612]
[1736719857972,0.28928907,691.35,690.13,0.27797612]
[1736719858166,0.26608101,691.34,690.13,0.27797612]
[1736719858371,0.26608101,691.33,690.13,0.27797612]
[1736719858572,0.26608101,691.32,690.13,0.27797612]
[1736719858771,0.26608101,691.31,690.13,0.27797612]
[1736719858973,0.26608101,691.3,690.13,0.27797612]
[1736719859171,0.26608101,691.29,690.13,0.27797612]
[1736719859374,0.26608101,691.28,690.13,0.27797612]
[1736719859673,0.26608101,691.27,690.13,0.27797612]
[1736719859874,0.26608101,691.26,690.13,0.27797612]
[1736719860076,0.26608101,691.25,690.13,0.27797612]
[1736719860372,0.26608101,691.24,690.13,0.27797612]
[1736719860572,0.26608101,691.23,690.13,0.27797612]
[1736719860772,0.26607984,691.22,690.13,0.27797612]
[1736719860968,0.26607984,691.21,690.13,0.27797612]
[1736719861174,0.26607984,691.2,690.13,0.27797612]
[1736719861474,0.26607984,691.19,690.13,0.27797612]
[1736719861674,0.26607984,691.18,690.13,0.27797612]
[1736719861875,0.26607984,691.17,690.13,0.27797612]
[1736719862176,0.26607984,691.16,690.13,0.27797612]
[1736719862374,0.26607984,691.15,690.13,0.27797612]
[1736719862581,0.26608423,691.14,690.13,0.27797612]
[1736719862781,0.26608423,691.13,690.13,0.27797612]
[1736719862980,0.26608423,691.12,690.13,0.27797612]
[1736719863182,1.06190399,691.2,690.13,0.27797612]
[1736719863381,0.26608446,691.19,690.13,0.27797612]
[1736719864086,1.06190399,691.12,690.13,0.27797612]
[1736719864387,0.26608446,691.11,690.13,0.27797612]
[1736719864786,1.06190399,690.99,690.13,0.27797612]
[1736719865388,0.26613551,690.98,690.13,0.27797612]
[1736719866087,1.06190399,690.99,690.13,0.27797612]
[1736719866282,0.26614048,690.98,690.13,0.27797612]
[1736719866686,1.06190399,690.86,690.13,0.27797612]
[1736719867481,1.06190399,690.8,690.13,0.27797612]
[1736719868481,1.06190399,690.84,690.13,0.27797612]
[1736719869386,1.06190399,690.83,690.13,0.27797612]
[1736719870288,1.06190399,690.82,690.13,0.27797612]
[1736719871383,1.06190399,690.83,690.13,0.27797612]
[1736719872687,1.06190399,690.87,690.13,0.27797612]
[1736719874691,1.06190399,690.88,690.13,0.27797612]
[1736719875793,1.06190399,690.87,690.13,0.27797612]
[1736719876793,1.06190399,690.89,690.13,0.27797612]
[1736719876995,0.26612526,690.88,690.13,0.27797612]
[1736719877694,1.06190399,690.77,690.13,0.27797612]
[1736719878194,1.06190399,690.77,689.23,1.28736206]
[1736719878386,1.06190399,690.77,689.25,0.29017047]
[1736719879598,1.06190399,690.84,689.25,0.29017047]
[1736719879795,0.26617677,690.83,689.25,0.29017047]
[1736719880901,1.06190399,690.77,689.25,0.29017047]
[1736719881094,0.26617677,690.76,689.25,0.29017047]
[1736719881500,1.06190399,690.71,689.25,0.29017047]
[1736719882701,1.51259408,691.27,689.25,0.29017047]
[1736719882702,1.06190399,690.78,689.25,0.29017047]
[1736719883999,1.06190399,691.23,689.25,0.29017047]
[1736719884799,1.06190399,691.28,689.25,0.29017047]
[1736719885402,0.28932673,691.26,689.25,0.29017047]
[1736719886105,0.28932673,691.26,689.26,1.51250095]
[1736719886405,0.28932673,691.26,689.28,0.29015784]
[1736719890103,0.26612452,691.25,689.28,0.29015784]
[1736719890804,0.2893351,691.24,689.28,0.29015784]
[1736719891005,0.26612452,691.23,689.43,1.28736206]
[1736719891207,0.28934347,691.22,689.45,0.2900863]
[1736719891408,0.26612452,691.21,689.45,0.2900863]
[1736719891604,0.28935185,691.2,689.45,0.2900863]
[1736719891809,0.26612452,691.19,689.45,0.2900863]
[1736719892008,0.28936022,691.18,689.47,1.28736206]
[1736719892209,0.26612452,691.17,689.49,0.29006947]
[1736719892507,0.26613026,691.16,689.49,0.29006947]
[1736719893109,0.28937278,691.15,689.59,1.28736206]
[1736719893408,0.26613026,691.14,689.6,0.2900232]
[1736719894306,1.06190399,691.13,689.63,1.28736206]
[1736719894508,0.26613026,691.12,689.63,1.28736206]
[1736719895007,1.06190399,691.08,689.6,0.2900232]
[1736719895206,0.26613026,691.07,689.6,0.2900232]
[1736719897213,1.06190399,691.06,689.6,0.2900232]
[1736719897510,0.55554491,691.05,689.6,0.2900232]
[1736719897710,0.5555491,691.04,689.6,0.2900232]
[1736719897910,1.06190399,691.02,689.6,0.2900232]
[1736719898110,0.26618032,691.01,689.6,0.2900232]
[1736719898711,1.06190399,691.02,689.6,0.2900232]
[1736719898911,0.26617954,691.01,689.6,0.2900232]
[1736719899107,1.32808353,691.01,689.6,0.2900232]
[1736719899316,1.06190399,691.01,689.6,0.2900232]
[1736719900112,1.06190399,691.02,689.6,0.2900232]
[1736719900308,0.26617627,691.01,689.6,0.2900232]
[1736719901612,1.32808026,691.01,689.6,0.2900232]
[1736719901813,0.26617627,691.0,689.6,0.2900232]
[1736719902610,1.06190399,691.01,689.6,0.2900232]
[1736719902813,1.06190399,691.02,689.6,0.2900232]
[1736719903016,0.26618347,691.01,689.6,0.2900232]
[1736719904114,1.06190399,691.03,689.6,0.2900232]
[1736719904315,0.2661837,691.02,689.6,0.2900232]
[1736719904714,0.2661837,691.01,689.6,0.2900232]
[1736719904915,1.35132283,691.04,689.6,0.2900232]
[1736719905111,0.26618346,691.03,689.6,0.2900232]
[1736719906117,0.26617644,691.02,689.6,0.2900232]
[1736719906315,0.26617644,691.01,689.6,0.2900232]
[1736719906514,0.26617644,691.0,689.6,0.2900232]
[1736719906709,1.06190399,691.03,689.6,0.2900232]
[1736719906911,0.26617697,691.02,689.6,0.2900232]
[1736719907515,1.06190399,691.03,689.6,0.2900232]
[1736719907711,1.06190399,691.0,689.6,0.2900232]
[1736719908719,0.28941884,691.04,689.6,0.2900232]
[1736719916616,0.2661601,691.03,689.6,0.2900232]
[1736719916818,1.06190399,691.0,689.6,0.2900232]
[1736719917018,0.26615991,690.99,689.6,0.2900232]
[1736719917223,1.06190399,691.0,689.6,0.2900232]
[1736719917823,0.28941884,691.04,689.6,0.2900232]
[1736719928429,1.06190399,691.39,689.6,0.2900232]
[1736719928625,0.26605279,691.38,689.6,0.2900232]
[1736719928830,1.06190399,691.35,689.6,1.57738526]
[1736719929030,0.26605279,691.34,689.6,1.57738526]
[1736719929831,0.28929744,691.33,689.6,0.2900232]
[1736719930030,0.26605279,691.32,689.6,0.2900232]
[1736719930429,0.28930581,691.31,689.6,0.2900232]
[1736719930626,0.26605279,691.3,689.6,0.2900232]
[1736719931930,0.55536278,691.3,689.6,0.2900232]
[1736719932130,0.26605279,691.29,689.6,0.2900232]
[1736719932332,0.28930999,691.3,689.6,0.2900232]
[1736719932527,0.26606556,691.29,689.6,0.2900232]
[1736719935329,0.28930999,691.3,689.6,0.2900232]
[1736719945146,0.26605587,691.29,689.6,0.2900232]
[1736719945945,0.28930999,691.3,689.6,0.2900232]
[1736719946141,0.26606318,691.29,689.6,0.2900232]
[1736719946746,0.26606183,691.28,689.6,0.2900232]
[1736719946942,0.26606183,691.27,689.6,0.2900232]
[1736719947143,0.26606183,691.26,689.6,0.2900232]
[1736719947344,0.26606183,691.25,689.6,0.2900232]
[1736719947539,0.28930999,691.3,689.6,0.2900232]
[1736719947540,0.26606183,691.24,689.6,0.2900232]
[1736719947839,0.28930999,691.3,689.63,1.28736206]
[1736719947840,0.26606183,691.23,689.63,1.28736206]
[1736719948043,0.26606183,691.22,689.65,0.29000217]
[1736719948246,0.26606183,691.21,689.65,0.29000217]
[1736719948444,0.26606183,691.2,689.65,0.29000217]
[1736719948650,0.28930999,691.3,689.65,1.57736423]
[1736719948948,0.26606105,691.29,689.65,1.57736423]
[1736719949349,0.26606105,691.29,689.67,1.28736206]
[1736719949549,0.26606105,691.29,689.69,0.28998535]
[1736719950445,0.26606105,691.29,689.7,1.28736206]
[1736719950649,0.26606105,691.29,689.72,0.28997274]
[1736719951252,0.26606105,691.29,689.72,1.5773348]
[1736719951450,0.26606105,691.29,689.72,7.41234249]
[1736719951649,0.26606105,691.29,689.73,2.84711156]
[1736719951852,0.26606105,691.29,689.75,0.28996013]
[1736719952052,0.26606105,691.29,689.75,1.57732219]
[1736719952451,0.26606105,691.29,689.75,4.42443375]
[1736719952653,0.26606105,691.29,689.76,2.84711156]
[1736719952848,1.06190399,691.28,689.77,0.28995172]
[1736719953054,0.26606105,691.27,689.77,3.13706328]
[1736719953257,0.26606105,691.27,689.78,2.98789613]
[1736719953554,1.06190399,691.28,689.78,2.98789613]
[1736719953851,1.06190399,691.27,689.77,0.28995172]
[1736719954555,1.51196429,691.28,689.77,0.28995172]
[1736719954754,0.26612589,691.27,689.77,0.28995172]
[1736719955749,1.06190399,691.14,689.77,0.28995172]
[1736719955953,0.26612589,691.13,689.77,0.28995172]
[1736719956552,1.32802988,691.13,689.77,0.28995172]
[1736719956753,1.06190399,691.13,689.77,0.28995172]
[1736719957755,1.06190399,691.14,689.77,0.28995172]
[1736719958555,1.06190399,691.15,689.77,0.28995172]
[1736719958753,0.26613371,691.14,689.77,0.28995172]
[1736719959260,1.06190399,691.16,689.77,0.28995172]
[1736719959459,0.26613377,691.15,689.77,0.28995172]
[1736719959658,1.06190399,691.17,689.77,0.28995172]
[1736719959858,0.26613447,691.16,689.77,0.28995172]
[1736719960454,1.32803846,691.16,689.77,0.28995172]
[1736719960660,0.26613447,691.15,689.77,0.28995172]
[1736719960956,0.28937697,691.14,689.77,0.28995172]
[1736719961562,0.26613071,691.13,689.77,0.28995172]
[1736719963164,0.2661314,691.12,689.77,0.28995172]
[1736719963357,0.2661314,691.13,689.77,0.28995172]
[1736719963559,0.2661314,691.12,689.77,0.28995172]
[1736719963759,0.2661314,691.11,689.77,0.28995172]
[1736719963960,0.2661314,691.13,689.77,0.28995172]
[1736719964165,0.2661314,691.12,689.77,0.28995172]
[1736719964365,0.2661314,691.11,689.77,0.28995172]
[1736719964566,0.28937697,691.14,689.77,0.28995172]
[1736719964567,0.2661314,691.1,689.77,0.28995172]
[1736719964867,0.2661314,691.09,689.77,0.28995172]
[1736719965066,0.28937697,691.14,689.77,0.28995172]
[1736719965266,0.26613029,691.13,689.77,0.28995172]
[1736719966868,1.06190399,691.12,689.77,0.28995172]
[1736719967169,0.26613029,691.11,689.77,0.28995172]
[1736719969067,0.26613029,691.1,689.77,0.28995172]
[1736719969270,0.26613029,691.09,689.77,0.28995172]
[1736719969568,0.26613029,691.08,689.77,0.28995172]
[1736719969767,0.26613029,691.07,689.77,0.28995172]
[1736719969962,0.26613029,691.06,689.77,0.28995172]
[1736719970170,0.28937697,691.14,689.77,0.28995172]
[1736719970171,0.26613029,691.05,689.77,0.28995172]
[1736719970368,0.26613029,691.04,689.77,0.28995172]
[1736719970567,0.26613029,691.11,689.77,0.28995172]
[1736719970768,0.26613029,691.1,689.77,0.28995172]
[1736719970968,0.26613029,691.09,689.77,0.28995172]
[1736719971168,1.06190399,691.13,689.77,0.28995172]
[1736719971169,0.26613029,691.08,689.77,0.28995172]
[1736719971365,0.26613029,691.07,689.77,0.28995172]
[1736719971564,1.06190399,691.13,689.77,0.28995172]
[1736719971771,1.06190399,691.12,689.77,0.28995172]
[1736719973170,0.28937697,691.14,689.77,0.28995172]
[1736719975572,0.26616767,691.13,689.77,0.28995172]
[1736719975767,0.28938534,691.12,689.77,0.28995172]
[1736719975974,1.06190399,691.05,689.77,0.28995172]
[1736719976173,0.26617293,691.04,689.77,0.28995172]
[1736719976873,0.55559177,691.04,689.77,0.28995172]
[1736719977072,0.26617293,691.03,689.77,0.28995172]
[1736719977868,1.35132283,691.04,689.77,0.28995172]
[1736719978967,0.28941884,691.04,689.77,0.28995172]
[1736719981775,0.26621346,691.03,689.77,0.28995172]
[1736719983571,0.28941884,691.04,689.77,0.28995172]
[1736719983771,0.26624402,691.02,689.77,0.28995172]
[1736719984771,0.28941884,691.04,689.77,0.28995172]
[1736719985972,1.51305992,691.03,689.77,0.28995172]
[1736719986575,0.26624053,691.02,689.77,0.28995172]
[1736719986976,0.26624319,691.01,689.77,0.28995172]
[1736719987279,1.51305992,691.03,689.77,0.28995172]
[1736719987577,0.2662402,691.02,689.77,0.28995172]
[1736719988778,1.51305992,691.03,689.77,0.28995172]
[1736719988977,0.2662414,691.02,689.77,0.28995172]
[1736719989379,0.28943141,691.01,689.77,0.28995172]
[1736719989780,0.26624205,691.0,689.77,0.28995172]
[1736719990681,0.28943978,690.99,689.77,0.28995172]
[1736720004383,0.26622939,690.98,689.77,0.28995172]
[1736720005184,0.28943978,690.99,689.77,0.28995172]
[1736720005384,0.26624023,690.98,689.77,0.28995172]
[1736720005690,0.28943978,690.99,689.77,0.28995172]
[1736720006084,0.28943978,690.99,688.91,1.29789714]
[1736720006291,0.28943978,690.99,689.01,0.29027154]
[1736720007593,0.26625963,690.98,689.01,0.29027154]
[1736720008895,1.06693606,690.97,689.01,0.29027154]
[1736720009495,1.51319699,690.96,689.01,0.29027154]
[1736720010096,0.26630124,690.95,689.01,0.29027154]
[1736720010493,0.26632508,690.94,689.01,0.29027154]
[1736720010694,1.51319699,690.96,689.01,0.29027154]
[1736720010695,1.06693606,690.92,689.01,0.29027154]
[1736720010894,0.26632508,690.91,689.01,0.29027154]
[1736720011397,0.26634624,690.9,689.01,0.29027154]
[1736720011692,1.06693606,690.7,689.01,0.29027154]
[1736720012801,1.06693606,690.76,689.01,0.29027154]
[1736720013001,0.26636096,690.75,689.01,0.29027154]
[1736720013300,0.26635765,690.74,689.01,0.29027154]
[1736720013502,0.26635765,690.73,689.01,0.29027154]
[1736720013696,1.06693606,690.76,689.01,0.29027154]
[1736720013697,0.26635765,690.72,689.01,0.29027154]
[1736720013903,0.26635765,690.71,689.01,0.29027154]
[1736720014100,0.26635765,690.7,689.01,0.29027154]
[1736720014302,0.26635765,690.69,689.01,0.29027154]
[1736720014603,0.26635765,690.68,689.01,0.29027154]
[1736720014901,1.06693606,690.65,689.01,0.29027154]
[1736720015101,0.26635765,690.64,689.01,0.29027154]
[1736720016004,0.26638249,690.63,689.01,0.29027154]
[1736720016299,1.06693606,690.72,689.01,0.29027154]
[1736720016504,0.26638303,690.71,689.01,0.29027154]
[1736720017003,0.26638303,690.7,689.01,0.29027154]
[1736720017199,0.26638303,690.69,689.01,0.29027154]
[1736720017401,0.26638303,690.68,689.01,0.29027154]
[1736720017601,1.06693606,690.82,689.01,0.29027154]
[1736720017903,0.2663768,690.81,689.01,0.29027154]
[1736720018103,0.28952358,690.79,689.01,0.29027154]
[1736720018408,0.2663768,690.78,689.01,0.29027154]
[1736720018605,0.28953616,690.76,689.01,0.29027154]
[1736720018804,0.2663768,690.75,689.01,0.29027154]
[1736720019402,0.26637605,690.74,689.01,0.29027154]
[1736720019606,0.26637605,690.73,689.01,0.29027154]
[1736720019803,0.26637605,690.72,689.01,0.29027154]
[1736720020608,0.28956131,690.7,689.01,0.29027154]
[1736720020807,0.26637605,690.69,689.01,0.29027154]
[1736720021508,0.26638118,690.68,689.01,0.29027154]
[1736720021714,0.26638118,690.67,689.01,0.29027154]
[1736720021902,0.26638118,690.66,689.01,0.29027154]
[1736720022109,0.55596345,690.65,689.01,0.29027154]
[1736720022308,0.26638118,690.64,689.01,0.29027154]
[1736720024410,0.28958227,690.65,689.01,0.29027154]
[1736720024610,0.26637549,690.64,689.01,0.29027154]
[1736720025209,0.28958227,690.65,689.01,0.29027154]
[1736720026508,0.26637661,690.64,689.01,0.29027154]
[1736720026709,0.28958227,690.65,689.01,0.29027154]
[1736720027710,0.26637556,690.64,689.01,0.29027154]
[1736720028112,0.28959066,690.63,689.01,0.29027154]
[1736720033010,0.26633215,690.62,689.01,0.29027154]
[1736720034513,0.28959066,690.63,689.01,0.29027154]
[1736720064342,0.28959066,690.63,689.01,3.13610213]
[1736720065742,0.28959066,690.63,689.02,3.00600651]
[1736720065941,0.28959066,690.63,689.03,2.84583059]
[1736720067443,0.28959066,690.63,689.04,3.00600651]
[1736720067739,0.28959066,690.63,689.05,2.84583059]
[1736720068139,0.28959066,690.63,689.06,1.75000548]
[1736720068345,0.28959066,690.63,689.05,1.75000548]
[1736720068644,0.28959066,690.63,689.04,3.00600651]
[1736720069142,0.28959066,690.63,689.05,1.74923926]
[1736720069342,0.28959066,690.63,689.01,0.29027154]
[1736720069640,1.51270915,691.1,689.01,0.29027154]
[1736720069843,0.2893979,691.09,689.01,0.29027154]
[1736720073442,0.26615851,691.08,689.01,0.29027154]
[1736720073646,0.2893979,691.09,689.01,0.29027154]
[1736720073850,0.26615809,691.08,689.01,0.29027154]
[1736720074049,0.26615809,691.08,689.07,1.30112453]
[1736720074548,0.2893979,691.09,689.07,1.30112453]
[1736720075142,0.2893979,691.09,689.01,0.29027154]
[1736720075143,0.2893979,691.09,689.08,1.30112453]
[1736720076350,0.2893979,691.09,689.11,1.30112453]
[1736720077849,0.2893979,691.09,689.11,4.14646172]
[1736720078048,0.2893979,691.09,689.12,2.84533719]
[1736720078453,0.2893979,691.09,689.11,2.84533719]
[1736720078651,0.2893979,691.09,689.13,3.00600651]
[1736720078951,0.2893979,691.09,689.14,2.84533719]
[1736720080051,0.2893979,691.09,689.16,0.29020836]
[1736720080251,0.2893979,691.09,689.16,1.38630629]
[1736720080547,0.2893979,691.09,689.16,3.13554555]
[1736720082151,0.2893979,691.09,689.17,3.00600651]
[1736720082352,0.2893979,691.09,689.18,2.84533719]
[1736720083548,0.2893979,691.09,689.19,3.00600651]
[1736720083755,0.2893979,691.09,689.2,2.84533719]
[1736720085156,0.2893979,691.09,689.21,3.00600651]
[1736720085355,0.2893979,691.09,689.22,2.84533719]
[1736720087156,0.2893979,691.09,689.23,3.00600651]
[1736720087358,0.2893979,691.09,689.24,2.84533719]
[1736720088558,0.2893979,691.09,689.26,0.29016626]
[1736720089162,0.2893979,691.09,689.26,1.38626419]
[1736720089460,0.2893979,691.09,689.26,3.13550345]
[1736720090358,0.2893979,691.09,689.27,3.00600651]
[1736720090558,0.2893979,691.09,689.29,0.29015363]
[1736720091659,0.2893979,691.09,689.29,3.29616014]
[1736720091859,0.2893979,691.09,689.3,2.84533719]
[1736720093960,0.2893979,691.09,689.31,3.00600651]
[1736720094164,0.2893979,691.09,689.32,2.84533719]
[1736720095566,0.2893979,691.09,689.33,3.00600651]
[1736720095762,0.2893979,691.09,689.34,2.84533719]
[1736720096671,0.2893979,691.09,689.36,0.29012417]
[1736720097264,0.2893979,691.09,689.36,1.3862221]
[1736720097469,0.2893979,691.09,689.36,3.13546136]
[1736720097870,0.2893979,691.09,689.36,2.03936343]
[1736720098272,0.2893979,691.09,689.36,5.04536994]
[1736720098471,0.2893979,691.09,689.37,1.74923926]
[1736720098974,0.2893979,691.09,689.39,0.29011154]
[1736720099173,0.26609429,691.08,689.39,0.29011154]
[1736720099371,0.2893979,691.09,689.39,0.29011154]
[1736720100571,0.26609149,691.08,689.39,0.29011154]
[1736720103373,0.26611811,691.07,689.39,0.29011154]
[1736720103572,0.26611811,691.06,689.39,0.29011154]
[1736720103770,0.26611811,691.08,689.39,0.29011154]
[1736720104377,0.26611811,691.05,689.39,0.29011154]
[1736720104576,0.2893979,691.09,689.39,0.29011154]
[1736720108980,0.26617277,691.08,689.39,0.29011154]
[1736720109378,0.28940628,691.07,689.39,0.29011154]
[1736720111982,1.51285711,691.06,689.39,0.29011154]
[1736720112178,0.28941465,691.05,689.39,0.29011154]
[1736720113178,0.26621934,691.04,689.39,0.29011154]
[1736720113383,0.28942303,691.03,689.39,0.29011154]
[1736720113584,0.26621934,691.02,689.39,0.29011154]
[1736720114184,0.2662168,691.01,689.39,0.29011154]
[1736720114383,0.2662168,691.0,689.39,0.29011154]
[1736720114585,0.26624622,690.99,689.39,0.29011154]
[1736720114786,0.28942303,691.03,689.39,0.29011154]
[1736720114787,0.26624622,690.98,689.39,0.29011154]
[1736720114986,0.26624756,690.97,689.39,0.29011154]
[1736720115181,0.26624756,691.02,689.39,0.29011154]
[1736720115378,0.26624756,691.01,689.39,0.29011154]
[1736720115579,0.26624756,691.0,689.39,0.29011154]
[1736720115787,0.26624756,690.99,689.39,0.29011154]
[1736720115986,0.26624756,690.98,689.39,0.29011154]
[1736720116178,0.26624756,690.97,689.39,0.29011154]
[1736720116384,0.26624756,690.96,689.39,0.29011154]
[1736720116686,0.26624756,690.95,689.39,0.29011154]
[1736720116885,0.26627339,690.94,689.39,0.29011154]
[1736720117086,0.26627339,690.93,689.39,0.29011154]
[1736720117280,0.26627339,690.92,689.39,0.29011154]
[1736720117481,0.26627339,690.91,689.39,0.29011154]
[1736720117684,0.26627339,690.9,689.39,0.29011154]
[1736720117886,0.26627339,690.89,689.39,0.29011154]
[1736720118187,0.28942303,691.03,689.39,0.29011154]
[1736720118385,0.26627829,691.02,689.39,0.29011154]
[1736720118587,0.26627829,691.01,689.39,0.29011154]
[1736720118889,0.26627829,691.0,689.39,0.29011154]
[1736720119087,0.26627829,690.99,689.39,0.29011154]
[1736720119283,0.26627829,690.98,689.39,0.29011154]
[1736720119489,0.26627829,690.97,689.39,0.29011154]
[1736720119685,0.28942303,691.03,689.39,0.29011154]
[1736720119686,0.26628953,690.96,689.39,0.29011154]
[1736720119987,0.26628953,690.95,689.39,0.29011154]
[1736720120189,0.26628953,690.94,689.39,0.29011154]
[1736720120382,0.26628953,690.93,689.39,0.29011154]
[1736720120586,0.26628953,690.92,689.39,0.29011154]
[1736720120886,0.26628953,690.91,689.39,0.29011154]
[1736720121086,0.26628953,690.9,689.39,0.29011154]
[1736720121283,0.26628953,690.89,689.39,0.29011154]
[1736720121485,0.26628953,690.88,689.39,0.29011154]
[1736720121684,0.28942303,691.03,689.39,0.29011154]
[1736720121886,0.26629051,691.02,689.39,0.29011154]
[1736720122290,1.5133286,691.02,689.39,0.29011154]
[1736720122489,0.26628992,691.01,689.39,0.29011154]
[1736720123084,1.5133286,691.02,689.39,0.29011154]
[1736720123284,0.2662712,691.01,689.39,0.29011154]
[1736720123884,0.2662674,691.0,689.39,0.29011154]
[1736720124087,1.5133286,691.02,689.39,0.29011154]
[1736720125492,0.28942303,691.03,689.39,0.29011154]
[1736720126599,0.26614673,691.02,689.39,0.29011154]
[1736720127790,0.2661284,691.01,689.39,0.29011154]
[1736720127994,0.2661284,691.0,689.39,0.29011154]
[1736720128297,0.2661284,690.99,689.39,0.29011154]
[1736720128491,0.28942303,691.03,689.39,0.29011154]
[1736720128696,0.26612594,691.02,689.39,0.29011154]
[1736720130195,0.28942303,691.03,689.39,0.29011154]
[1736720130495,0.26612866,691.01,689.39,0.29011154]
[1736720133597,0.26617777,691.0,689.39,0.29011154]
[1736720135798,0.2662139,690.99,689.39,0.29011154]
[1736720136097,0.2662139,690.98,689.39,0.29011154]
[1736720136299,0.55566206,690.97,689.39,0.29011154]
[1736720136499,0.55566474,690.96,689.39,0.29011154]
[1736720136694,0.26621239,690.95,689.39,0.29011154]
[1736720137399,1.51307089,690.94,689.39,0.29011154]
[1736720137699,0.26621239,690.93,689.39,0.29011154]
[1736720138396,1.51307089,690.94,689.39,0.29011154]
[1736720138695,0.26624794,690.93,689.39,0.29011154]